{"text_format":"2","workbook":"xlsx","n_sheets":3,"sheets":["Sheet1","Sheet2","Sheet3"],"not_rendered":{"charts":0,"images":0,"macros":0,"external_links":0,"defined_names":1,"comments":0,"pivot_tables":0},"unopened":[],"bounds":{"document_bytes":16777216,"sheet_cells":100000,"run_cost":"one","rows_first":2000,"rows_last":500,"rows_between":2000,"halvings":0,"cell_chars":16384,"cell_head_chars":4096},"cells_cut":0,"cells_raw":0,"read":"whole","date_system":"1900"}

{"sheet":"Sheet1","index":0,"n_rows":57,"n_cols":7,"rows_kept":57,"cut":false,"hidden":false,"merged":[[0,1,0,6],[1,1,1,6],[55,0,55,6],[56,0,56,6],[47,0,47,6],[49,0,49,6],[50,0,50,6],[51,0,51,6],[52,0,52,6],[53,0,53,6]]}
["PROJECT NAME:","PROJECT ADDRESS:"]
[]
["TABLE 709.1, 2018 IPC"]
["DRAINAGE FIXTURE UNITS FOR FIXTURES AND GROUPS"]
[null,null,"DRAINAGE",null,"ENTER",null,"TOTAL"]
["FIXTURE TYPE","NOTES","FIXTURE UNIT",null,"# OF NEW",null,"FIXTURE"]
[null,null,"VALUE",null,"FIXTURES",null,"UNITS"]
["Automatic clothes washers, commercial","a, g",3,"x",0,"=",{"$f":"SUM(C8*E8)","v":0}]
["Automatic clothes washers, residential","g",2,"x",0,"=",{"$f":"SUM(C9*E9)","v":0}]
["Bathroom group as defined in Section 202 (1.6 gpf water closet)","f",5,"x",0,"=",0]
["Bathroom group as defined in Section 202 (water closet flushing  greater than 1.6 gpf)","f",6,"x",0,"=",0]
["Bathtubb (with or without overhead shower or whirpool attachments)","b",2,"x",0,"=",0]
["Bidet",null,1,"x",0,"=",0]
["Combination sink and tray",null,2,"x",0,"=",0]
["Dental lavatory",null,1,"x",0,"=",0]
["Dental unit or cuspidor",null,1,"x",0,"=",0]
["Dishwashing machine, domestic","c",2,"x",0,"=",0]
["Drinking fountain"," ",0.5,"x",0,"=",0]
["Emergency floor drain",null,0,"x",0,"=",0]
["Floor drains",null,2,"x",0,"=",0]
["Kitchen sink, domestic",null,2,"x",0,"=",0]
["Kitchen sink, domestic with food waste grinder and/or dishwasher",null,2,"x",0,"=",0]
["Laundry tray (1 or 2 compartments)",null,2,"x",0,"=",0]
["Lavatory",null,1,"x",0,"=",0]
["Shower",null,2,"x",0,"=",0]
["Service sink",null,2,"x",0,"=",0]
["Sink",null,2,"x",0,"=",0]
["Urinal","d",4,"x",0,"=",0]
["Urinal, 1 gallon per flush or less","d,e",2,"x",0,"=",0]
["Urinal, nonwater supplied","d",0.5,"x",0,"=",0]
["Wash sink (circular or multiple) each set of faucets",null,2,"x",0,"=",0]
["Water closet, flushometer tank, public or private","d,e",4,"x",0,"=",0]
["Water closet, private (1.6 gpf)","d,e",3,"x",0,"=",0]
["Water closet, private (flushing greater than 1.6 gpf)","d,e",4,"x",0,"=",0]
["Water closet, public (1.6 gpf)","d,e",4,"x",0,"=",0]
["Water closet, public (flushing greater than 1.6 gpf)","d,e",6,"x",0,"=",0]
["Table 709.2: For fixture types not listed based on fixture drain or trap size (inches)"]
["1 1/4\"",null,1,"x",0,"=",{"$f":"SUM(C38*E38)","v":0}]
["1 1/2\"",null,2,"x",0,"=",0]
["2\"",null,3,"x",0,"=",0]
["2 1/2\"",null,4,"x",0,"=",0]
["3\"",null,5,"x",0,"=",0]
["4\"",null,6,"x",0,"=",0]
[null,"TOTAL FIXTURES: ",null,null,{"$f":"SUM(E8:E43)","v":0}]
[null,"TOTAL FIXTURE UNITS:",null,null,"(TFU)",null,{"$f":"SUM(G8:G43)","v":0}]
["(REU - Residential Equivilent Unit, 15 Fixture Units per REU)","TOTAL REUs:",null,null,"(REU=TFU / 15)"," ",{"$f":"SUM(G45/15)","v":0}]
[]
["For SI: 1 inch = 25.4 mm, 1 gallon = 3.785 L (gpf  = gallon per flushing cycle)."]
[]
["a. For traps larger than 3 inches, use Table 709.2."]
["b. A showerhead over a bathtub or whirlpool bathtub attachment does not increase the drainage fixture unit value."]
["c. See Sections 709.2 through 709.4 for methods of computing unit value of fixtures not listed in this table or for rating of devices with intermittent flows."]
["d. Trap size shall be consistent with the fixture outlet size."]
["e. For  the purpose of computing loads on building drains and sewers, water closets and urinals shall not be rated at a lower drainage fixture unit "]
["    unless the lower values are confirmed by testing."]
["f. For fixtures added to a dwelling unit bathroom group, add the dfu value of those additional fixtures to the bathroom group fixture count."]
["g. See Section 406.3 for sizing requirements for fixture drain, branch drain, and drainage stack for an automatic clothes washer standpipe."]

{"sheet":"Sheet2","index":1,"n_rows":0,"n_cols":0,"rows_kept":0,"cut":false,"hidden":false,"merged":[]}

{"sheet":"Sheet3","index":2,"n_rows":0,"n_cols":0,"rows_kept":0,"cut":false,"hidden":false,"merged":[]}